Cogmind - Beta 15 @@@ ROGUE MODE // 2025.07.03 @ 17:07:36 Player: Annull999 Result: Self-destructed Performance ------------- Evolutions (2) 1000 Regions Visited (4) 800 Robots Destroyed (29) 145 Value Destroyed (831) 831 Prototype IDs (0) 0 Alien Tech Used (0) 0 Bonus (14) 14 TOTAL SCORE: 2790 Bonus ------- Follower Combat Kills 14 Cogmind --------- Core Integrity 459/550 Matter 7/300 Energy 100/100 System Corruption 0% Temperature Warm (102) Movement Treading (240) Ox1 Location -8/Materials Parts ------- > --- POWER (1) -------- (None) > --- PROPULSION (4) --- Light Treads Wheel > --- UTILITY (3) ------ Large Storage Unit Sensor Array Insulated Plating > --- WEAPON (3) ------- Minigun Flak Cannon Flak Cannon > --- INVENTORY (15) --- Small Storage Unit High-powered Shotgun High-powered Shotgun High-powered Shotgun Improved Light Cannon Flak Cannon Rocket Launcher Concussive RPG (1) Datajack Peak State ------------ > --- POWER ------------ Ion Engine > --- PROPULSION ------- Light Treads Wheel Wheel Compact Wheel > --- UTILITY ---------- Large Storage Unit Sensor Array Insulated Plating > --- WEAPON ----------- Flak Cannon Flak Cannon Flak Cannon > --- INVENTORY -------- Small Storage Unit Minigun High-powered Shotgun High-powered Shotgun Improved Light Cannon Flak Cannon Rocket Launcher Concussive RPG Datajack [Rating: 21] Favorites ----------- Power Ion Engine Engine Ion Engine Propulsion Light Treads Treads Light Treads Leg Aluminum Leg Wheel Wheel Utility Small Storage Unit Device Sensor Array Storage Small Storage Unit Protection Insulated Plating Weapon Flak Cannon Energy Gun Medium Laser Ballistic Gun Assault Rifle Ballistic Cannon Flak Cannon Launcher Grenade Launcher Build | -11 -10 -9 -9 -8 ------- Run | Yrd Mat Mat Min Mat Slots Evolved 4 | . . 2 . 2 Power . | . . . . . Propulsion 2 | . . 2 . . Utility 1 | . . . . 1 Weapon 1 | . . . . 1 Parts Attached 20 | . 4 11 1 4 Power 1 | . . 1 . . Engine 1 | . . 1 . . Core . | . . . . . Reactor . | . . . . . Propulsion 6 | . . 4 1 1 Treads 3 | . . 2 . 1 Leg . | . . . . . Wheel 3 | . . 2 1 . Hover . | . . . . . Flight . | . . . . . Utility 4 | . 1 2 . 1 Device 2 | . 1 1 . . Storage 1 | . . . . 1 Processor . | . . . . . Hackware . | . . . . . Protection 1 | . . 1 . . Artifact . | . . . . . Weapon 9 | . 3 4 . 2 Energy Gun . | . . . . . Energy Cannon . | . . . . . Ballistic Gun 2 | . 1 . . 1 Ballistic Cannon 4 | . . 3 . 1 Launcher 3 | . 2 1 . . Special Weapon . | . . . . . Impact Weapon . | . . . . . Slashing Weapon . | . . . . . Piercing Weapon . | . . . . . Special Melee Weapon . | . . . . . Unidentified Prototypes . | . . . . . Parts Lost 12 | . 4 1 1 6 Power 2 | . 1 . . 1 Propulsion 6 | . 1 1 1 3 Utility . | . . . . . Weapon 4 | . 2 . . 2 Highest Loss Streak 4 | . 3 1 1 4 To Critical Strikes . | . . . . . Average Backups 7 | 6 6 6 7 8 Power . | 1 1 . . . Propulsion 1 | 4 4 . . . Utility . | . . 1 1 . Weapon 3 | 1 1 3 4 5 Tool/Special . | . . . . . Unused Backups 17 | . 5 4 . 8 Power 2 | . 1 1 . . Propulsion 3 | . 2 1 . . Utility 2 | . 1 1 . . Weapon 8 | . 1 1 . 6 Tool/Special 2 | . . . . 2 Average Slot Usage (%) 96 | . 93 97 95 97 Engine 11 | . 13 10 11 9 Treads 9 | . . 21 16 9 Leg 10 | . 27 6 . . Wheel 14 | . . 14 23 25 Device 10 | . 10 11 11 9 Storage 11 | . 14 11 11 9 Protection 2 | . . . . 8 Energy Gun 2 | . 8 . . . Ballistic Gun 6 | . 17 2 . . Ballistic Cannon 12 | . . 10 22 23 Launcher 2 | . . 8 . 2 Peak Build Rating 21 | 6 7 16 14 21 Average Rating 12 | 6 6 12 13 19 On Entrance 8 | 6 6 4 14 14 Naked Turns . | . . . . . Heaviest Build 47 | 14 17 23 23 47 Greatest Support 40 | 20 20 26 36 40 Greatest Overweight (x) 2 | . . 1 . 2 Average Overweight (x) . | . . . . . Largest Inventory Capacity 15 | 8 8 8 8 15 Average Capacity 9 | 8 8 8 8 11 Most Carried 10 | 6 8 8 8 10 Average Carried 7 | 6 6 6 7 8 Final Capacity 15 | 8 8 8 8 15 Final Carried 9 | 6 7 7 8 9 Class Distribution -------------------- 73% | Mutant 26% | Tank Dominant Class ---------------- Mutant | -10/Materials Mutant | -9/Materials Mutant | -9/Mines Tank | -8/Materials Resources | -11 -10 -9 -9 -8 ----------- Run | Yrd Mat Mat Min Mat Matter Collected 717 | 200 100 45 158 214 Remotely . | . . . . . Salvage Created 796 | . 332 227 2 235 Parts 48 | . 16 14 . 18 Haulers Intercepted . | . . . . . Recyclers Shooed . | . . . . . Parts Field Recycled . | . . . . . Retrieved Matter . | . . . . . Parts Self-Destructed . | . . . . . Prevented . | . . . . . Kills | -11 -10 -9 -9 -8 ------- Run | Yrd Mat Mat Min Mat Combat Hostiles Destroyed 29 | . 10 7 2 10 Guns 8 | . 8 . . . Cannons 14 | . . 5 2 7 AOE 7 | . 2 2 . 3 Classes Destroyed 6 | . 2 2 2 . Recycler 1 | . . 1 . . Swarmer 11 | . 3 4 . 4 Grunt 13 | . 7 2 . 4 Sentry 3 | . . 1 . 2 Demolisher 1 | . . . 1 . Assembled 1 | . . . 1 . Best Kill Streak 5 | . 4 5 1 5 Combat Bots Only 5 | . 4 4 1 5 Max Kills in Single Turn 2 | . 2 2 1 2 Gunslinging . | . . . . . Exploded 2 | . 2 2 . 2 Melee . | . . . . . Uniques/NPCs Destroyed . | . . . . . Combat | -11 -10 -9 -9 -8 -------- Run | Yrd Mat Mat Min Mat Hostile Shots Fired 199 | . 52 53 27 67 Missed 54 | . 9 18 6 21 Hits 145 | . 43 35 21 46 Melee 1 | . . . 1 . Projectile 144 | . 43 35 20 46 AOE 4 | . . . 4 . Critical Strikes 3 | . . 2 . 1 Damage Taken 2034 | . 598 328 390 718 Core 251 | . 57 58 45 91 Absorbed by Shields . | . . . . . Ignored by Resistances 4 | . . . . 4 Core Remaining (%) 83 | 100 77 . 74 . Volleys Fired 75 | . 34 16 5 20 Largest 3 | . 2 2 2 3 Hottest 111 | . 70 74 74 111 Shots Fired 142 | . 65 17 10 50 Gun 66 | . 63 . . 3 Cannon 69 | . . 16 10 43 Launcher 7 | . 2 1 . 4 Special . | . . . . . Kinetic 111 | . 39 16 10 46 Thermal 24 | . 24 . . . Explosive 7 | . 2 1 . 4 Electromagnetic . | . . . . . Robot Hit Streak 7 | . 7 4 5 5 Robot Miss Streak 19 | . 3 10 19 10 Penetration Max . | . . . . . Secondary Targets 1 | . 1 . . . Max Gunslinging Chain 1 | . 1 . . . Shots Hit Robots 95 | . 42 13 7 33 Core Hits 74 | . 17 18 7 32 Critical Kills . | . . . . . Critical Parts Destroyed . | . . . . . Critical Strikes 4 | . 4 . . . Burn 4 | . 4 . . . Melee Attacks . | . . . . . Impact . | . . . . . Slashing . | . . . . . Piercing . | . . . . . Sneak Attacks . | . . . . . Combat Hostiles . | . . . . . Follow-up Attacks . | . . . . . Damage Inflicted 1747 | . 634 319 87 707 Guns 536 | . 513 . . 23 Cannons 716 | . . 219 83 414 Explosions 471 | . 121 100 . 250 Melee . | . . . . . Ramming 24 | . . . 4 20 Kinetic 1064 | . 338 206 83 437 Thermal 175 | . 175 . . . Explosive 471 | . 121 100 . 250 Electromagnetic . | . . . . . Impact 13 | . . 13 . . Slashing . | . . . . . Piercing . | . . . . . Highest Corruption . | . . . . . Average Corruption . | . . . . . Corruption Purged . | . . . . . Corruption Blocked . | . . . . . Overload Shots . | . . . . . Overflow Damage 70 | . 70 . . . Projectiles . | . . . . . Explosions 70 | . 70 . . . Melee . | . . . . . Knockbacks 21 | . . 8 3 10 Impact . | . . . . . Kinetic 21 | . . 8 3 10 Secondary . | . . . . . Self-Inflicted Damage 180 | . 138 . 1 41 Shots 3 | . 2 . . 1 Rammed 5 | . . . 2 3 Targets Rammed 5 | . . . 2 3 Kicked . | . . . . . Crushed . | . . . . . Highest Temperature 170 | . 153 4 29 170 Average Temperature 46 | . 47 2 13 53 Received Heat Transfer 414 | . 201 54 15 144 Siege Activations . | . . . . . Martial Activations . | . . . . . Shielding Activations . | . . . . . Robots Disrupted . | . . . . . Combat Hostiles . | . . . . . Robots Corrupted . | . . . . . Combat Hostiles . | . . . . . Parts Fried . | . . . . . Impact Corruptions . | . . . . . Robots Melted . | . . . . . Combat Hostiles . | . . . . . Parts Melted . | . . . . . Heat Transferred 814 | . 814 . . . Parts Sabotaged . | . . . . . Parts Stolen . | . . . . . Parts Stripped . | . . . . . Power Chain Reactions . | . . . . . Alert | -11 -10 -9 -9 -8 ------- Run | Yrd Mat Mat Min Mat Maximum Alert Level 1 | . . . . 1 Low Security (%) 97 | 100 100 100 100 90 Level 1 2 | . . . . 9 Level 2 . | . . . . . Level 3 . | . . . . . Level 4 . | . . . . . Level 5 . | . . . . . High Security . | . . . . . Max Security . | . . . . . Peak Influence 212 | . 132 154 55 212 Initial 55 | . . 52 55 . Average 71 | . 70 55 16 118 Influence Increases 920 | . 352 204 22 342 Destroy 0b10 Robot/C 600 | . 200 140 20 240 Destroy 0b10 Robot/NC 5 | . . 5 . . Destroy Leader 120 | . 50 20 . 50 Allied During Kill 20 | . . . 2 18 Successful Hack 35 | . 17 . . 18 Disable Machine 30 | . 30 . . . Destroy Structure 65 | . 40 9 . 16 Lose Combat Pursuer 45 | . 15 30 . . Influence Decreases 818 | . 228 184 166 240 Entered New Map 161 | . . 72 89 . Time Decay 497 | . 188 102 47 160 Lost Part 120 | . 40 10 10 60 Lost Ally 40 | . . . 20 20 Squads Dispatched 7 | . 3 1 . 3 Investigation 3 | . 1 . . 2 Extermination . | . . . . . Reinforcement 4 | . 2 1 . 1 Assault . | . . . . . Garrison . | . . . . . Intercept . | . . . . . Searches Triggered . | . . . . . Construction Impeded 1 | . . . . 1 Haulers Reinforced . | . . . . . Active Scanning Responses . | . . . . . Cargo Convoy Interrupts . | . . . . . Stealth | -11 -10 -9 -9 -8 --------- Run | Yrd Mat Mat Min Mat Distress Signals 2 | . . 1 . 1 Communications Jammed . | . . . . . Distress Signals . | . . . . . Times Spotted 60 | . 15 11 17 17 Peak Tracking Total 18 | . 3 5 18 4 Tactical Retreats 3 | . 1 1 1 . Traps | -11 -10 -9 -9 -8 ------- Run | Yrd Mat Mat Min Mat Traps Triggered 1 | . . . . 1 Indirectly . | . . . . . Trap Hack Attempts . | . . . . . Triggered . | . . . . . Disarmed . | . . . . . Reprogrammed . | . . . . . Reused . | . . . . . Traps Extracted . | . . . . . Installed . | . . . . . Triggered . | . . . . . Machines | -11 -10 -9 -9 -8 ---------- Run | Yrd Mat Mat Min Mat Machines Disabled 3 | . 3 . . . Max in Single Turn 2 | . 2 . . . Machines Repaired . | . . . . . Machines Dismantled . | . . . . . Machines Sabotaged . | . . . . . Overloaded Fab Kills . | . . . . . Hacking | -11 -10 -9 -9 -8 --------- Run | Yrd Mat Mat Min Mat Machines Accessed 5 | . 2 1 . 2 Terminals 5 | . 2 1 . 2 Fabricators . | . . . . . Repair Stations . | . . . . . Recycling Units . | . . . . . Scanalyzers . | . . . . . Garrison Access . | . . . . . Total Hacks 14 | . 7 1 . 6 Successful 6 | . 3 . . 3 Failed 8 | . 4 1 . 3 Catastrophic 1 | . . 1 . . Database Lockouts . | . . . . . Manual 8 | . 4 1 . 3 Terminals 14 | . 7 1 . 6 Fabricators . | . . . . . Repair Stations . | . . . . . Recycling Units . | . . . . . Scanalyzers . | . . . . . Garrison Access . | . . . . . Terminal Hacks 2 | . 1 . . 1 Alert Level 1 | . 1 . . . Zone Layout 1 | . . . . 1 Fabricator Hacks . | . . . . . Repair Station Hacks . | . . . . . Recycling Unit Hacks . | . . . . . Scanalyzer . | . . . . . Garrison Access Hacks . | . . . . . Unauthorized Hacks 4 | . 2 . . 2 Terminals 4 | . 2 . . 2 Botnet 4 | . 2 . . 2 Fabricators . | . . . . . Repair Stations . | . . . . . Recycling Units . | . . . . . Scanalyzers . | . . . . . Garrison Access . | . . . . . Data Cores Recovered . | . . . . . Used . | . . . . . Hacking Detections 5 | . 2 1 . 2 Full Trace Events 3 | . 1 . . 2 Feedback Events . | . . . . . Feedback Blocked . | . . . . . Robot Schematics Acquired . | . . . . . Robots Built . | . . . . . Authchips . | . . . . . Time . | . . . . . Total Robot Build Rating . | . . . . . Part Schematics Acquired . | . . . . . Parts Built . | . . . . . Authchips . | . . . . . Time . | . . . . . Total Part Build Rating . | . . . . . Parts Repaired . | . . . . . Time . | . . . . . Parts Recycled . | . . . . . Recycled Matter . | . . . . . Retrieved Matter . | . . . . . Retrieved Components . | . . . . . Parts Scanalyzed . | . . . . . Part Schematics Acquired . | . . . . . Parts Damaged . | . . . . . Bothacking | -11 -10 -9 -9 -8 ------------ Run | Yrd Mat Mat Min Mat Used RIF Installer . | . . . . . Robots Hacked . | . . . . . Non-combat . | . . . . . Combat . | . . . . . Robot Hacks Applied . | . . . . . Relay Couplers Released . | . . . . . Fabnet Peak Effective % . | . . . . . Robots Rewired . | . . . . . Allies Hacked . | . . . . . Hacks Repelled . | . . . . . Allies | -11 -10 -9 -9 -8 -------- Run | Yrd Mat Mat Min Mat Total Allies 3 | . . . 3 . Largest Group 3 | . . . 3 2 Highest-Rated Group 40 | . . . 40 23 Highest-Rated Ally 16 | . . . 16 16 Total Orders . | . . . . . Ally Attacks 44 | . . . 20 24 Total Damage 362 | . . . 162 200 Kills 7 | . . . 4 3 Allies Corrupted . | . . . . . Allies Melted . | . . . . . Intel | -11 -10 -9 -9 -8 ------- Run | Yrd Mat Mat Min Mat Active Infowar (turns) 1124 | . 318 253 206 347 Sensors 639 | . . 86 206 347 Seismic 485 | . 318 167 . . Robot Analysis Total . | . . . . . Derelict Logs Recovered . | . . . . . Drone Launches . | . . . . . Drone Recoveries . | . . . . . Exploration | -11 -10 -9 -9 -8 ------------- Run | Yrd Mat Mat Min Mat Turns Passed 1216 | 6 402 255 206 347 Spaces Moved 864 | 4 230 191 176 263 Core . | . . . . . Treads 3 | . . . . 3 Legs 234 | 4 230 . . . Wheels 627 | . . 191 176 260 Hover . | . . . . . Flight . | . . . . . Fastest Speed 86 | 120 120 90 86 86 Average Speed 101 | 120 120 100 89 94 Slowest Speed 320 | 120 120 115 90 320 Overloaded Moves . | . . . . . Propulsion Burnouts . | . . . . . Robots Hopped . | . . . . . Potential Cave-ins . | . . . . . Cave-ins Triggered . | . . . . . Exploration Rate (%) 26 | 2 43 30 35 22 Regions Visited 4 Branch Regions 1 Pre-discovered Areas . | . . . . . Known Exits Taken . | . . . . . Unknown Exits Taken 4 | 1 1 1 1 . Scrap Searched . | . . . . . Spaces Dug . | . . . . . Terrain Destroyed 68 | . 44 9 . 15 Melee . | . . . . . Projectile . | . . . . . AOE 68 | . 44 9 . 15 Terrain Rammed . | . . . . . Walls Destroyed . | . . . . . Machines Disabled . | . . . . . Actions | -11 -10 -9 -9 -8 --------- Run | Yrd Mat Mat Min Mat Total 1064 | 5 290 237 214 318 Wait 64 | 2 20 . 27 15 Move 860 | 3 229 190 175 263 Hop . | . . . . . Pick Up 25 | . 3 12 3 7 Fast Attach . | . . . . . Attach 15 | . 2 7 1 5 Detach . | . . . . . Swap 13 | . 2 7 . 4 Drop 7 | . . 5 1 1 Fire 75 | . 34 16 5 20 Melee . | . . . . . Ram 4 | . . . 2 2 Kick . | . . . . . Crush 1 | . . . . 1 Escape Stasis . | . . . . . Rewire . | . . . . . Trap . | . . . . . Miscellaneous . | . . . . . Route ------- -11/Scrapyard -10/Materials (discovered 2 exits: *Mat / [*Min]) -9/Materials -9/Mines -8/Materials (discovered 1 exit: [Fac]) History --------- Turn | Location | Event 1 | -11/Scrapyard | Discovered new exit (range 1) 7 | -11/Scrapyard | Entered Materials 209 | -10/Materials | Discovered new exit (range 9) 303 | -10/Materials | Build established: Mutant 389 | -10/Materials | Discovered new exit (range 13) 409 | -10/Materials | Entered another Materials area 409 | -9/Materials | Evolved 2 slots: Propulsion x2 420 | -9/Materials | Lost 3 parts (1p1n1w) 654 | -9/Materials | Discovered new exit (range 13) 664 | -9/Materials | Entered Mines 665 | -9/Mines | Assembled infested the area 723 | -9/Mines | Received a Rocket Launcher from a helpful Derelict 727 | -9/Mines | Discovered new exit (range 15) 730 | -9/Mines | Assisted by bots powering up and referring to "LRC-V3" 870 | -9/Mines | Entered Materials 870 | -8/Materials | Accompanied by 2 allies 870 | -8/Materials | Evolved 2 slots: Utility x1, Weapon x1 993 | -8/Materials | Discovered new exit (range 15) 1217 | -8/Materials | Self-destructed Last Messages --------------- 01168_ Penetrated by Slug. 01171_ Wheel destroyed. 01174_ Slug penetrates Door. 01178_ Penetrated by Slug. 01178_ Lgt. Treads destroyed. 01180_ H-55 Commando knocked back. 01181_ Slug penetrates Door. 01184_ Slug penetrates Wall. 01198_ H-55 Commando knocked back. 01198_ Penetrated by Slug. 01202_ Com. Wheel destroyed. 01206_ H-55 Commando knocked back. 01207_ Slug penetrates Wall. 01208_ Critical hit (Burn: +37). 01209_ Slammed into U-05 Engineer. 01210_ U-05 Engineer builds a Door. 01211_ Penetrated by Slug. 01212_ Ion Engine destroyed. 01213_ H-55 Commando knocked back. 01215_ Slug penetrates Wall. Map ----- +----------------------------------------------------+ | ???????????????????????????# + ! !#? | | ????????????????????# """ # ########? | | ????????????????????# """ # #? #? | | ????????????????????# # # #? | | ????????????????????##+##### # #? | | ???????????????????? ## #? | | ???????????????????? < ## # #? | | ???????????????????? ## ### #? | | ???????????????????######### ######### | | ????????????????? # /// # # ! = # | | ????????????????? # // + + # | | ????????????????? # // # # """"" # | | ????????????????# ######### # """"" # | | ????????????????# ######### # """"" # | | ????????????????# # ## ######### | | ????????????????# # " ## ########? | | ????????????????# #""" ## # ] T #? | | ????????????????# #""" ## # #? | | ????????????????# #""" ## # """ #? | | ???????????###??# # "" ## # """ #? | | ??????????? ??# #""" ## + """ #? | | ???????????""""?# #"" ## # #? | | ??????????"""""?#? #"" ## ######### | | ??????????""""" # # " # k # # | | ??????????""""" # # u g ? # """# | | ??????????""""" + h @# ? %# """# | | ??????????""""" # # #[ [# """# | | ??????????""""" # [#########? ## # | | ???????? # ? ## """# | | ?????????####### ? ## """# | | ???????????????##"" ## """# | | ????????????????#"" ## # | | ????????????????#"T # """# | | ????????????????#"" # """# | | ??????????#######"" + """# | | ??????????# # # | | ??????????# ### ######### | | ??????????# #?# #???????? | | ??????????# """ #?# +???????? | | ??????????# """ #?# #???????? | | ??????????+ """ #???????? | | ########### ####???????? | | + #??????????? | | #######+########## ?????????? | | #??# #????# #####?????????? | | #??# #????#+##?????????????? | | #??# #?????????????????????? | | #??# #?????????????????????? | | #??# #?????????????????????? | | #??# #?????????????????????? | +----------------------------------------------------+ Best States ------------- Heat Dissipation 31 Energy Generation 10 Energy Capacity 250 Matter Stores 300 Matter Capacity 300 Sight Range 16 Robot Scan Range 14 Terrain Scan Density 10 Armor Coverage 150 Resistance: EM 15 Evasion (%) 55 Recoil Reduction 1 Item Schematics ----------------- None Robot Schematics ------------------ None Fabricated ------------ Nothing Repaired ---------- Nothing Alien Tech Used ----------------- None Achievements -------------- None Challenges ------------ None Game ------ Seed FrostTimingPit Manual? 0 Play Time 00:24:06 Cumulative 18.4 hours Start 2025.07.03 @ 16:38:43 End 2025.07.03 @ 17:07:36 Sessions 1 Manual Loads 0 Difficulty Rogue Special Mode None Game No. 32 Rogue 32 Adventurer 0 Explorer 0 Win Type - Total 0 Types 0/0/0/0/0/0/0/0/0/0 Lore% 5 Gallery% 16 Achievement% 17 Wizard Run 0 Options --------- Layout 0 ASCII 1 Keyboard 0 Movement Numpad Keybinds 0 Fullscreen 1 Font 18/SmallcapsGlow Map View 76x50 Zoom Use 0% Tactical HUD 1 Map Filters NONE Filters NONE Steam 1 RUN: 7ec74d3a-9b0c-42ae-822e-368847af6163